bitfinex/quotes_SOLUSD_20241107
["timestamp","ask_amount","ask_price","bid_price","bid_amount"]
[1731020834995,15.7325809,195.16,195.08,15.7325809]
[1731020834996,0.1,195.11,195.08,15.7325809]
[1731020835203,0.1,195.13,195.09,15.7325809]
[1731020835510,0.1,195.14,195.11,15.7325809]
[1731020835820,0.2,195.13,195.09,15.7325809]
[1731020835993,0.2,195.13,195.09,39.5094649]
[1731020835994,0.1,195.1,195.09,39.5094649]
[1731020836196,0.1,195.1,195.08,15.7325809]
[1731020836814,0.1,195.1,195.09,15.7325809]
[1731020838125,0.1,195.09,195.07,15.7325809]
[1731020838312,0.1,195.09,195.06,15.7325809]
[1731020838618,0.1,195.1,195.0,15.7325809]
[1731020838619,0.1,195.03,195.0,15.7325809]
[1731020838824,0.1,195.02,195.0,15.7325809]
[1731020839017,0.1,195.02,194.99,15.7325809]
[1731020839323,0.1,195.02,194.94,16.5357]
[1731020839324,0.1,195.0,194.97,15.7325809]
[1731020839617,0.1,195.0,194.84,262.13893162]
[1731020839618,0.1,194.98,194.83,23.1165]
[1731020839799,0.1,194.98,194.94,15.7325809]
[1731020840301,0.1,194.96,194.94,15.7325809]
[1731020840698,0.1,194.96,194.95,15.7325809]
[1731020842511,0.1,194.97,194.95,15.7325809]
[1731020842807,0.1,194.97,194.96,15.7325809]
[1731020843719,0.1,194.99,194.96,15.7325809]
[1731020843720,0.1,194.98,194.96,15.7325809]
[1731020843898,0.2,194.99,194.97,15.7325809]
[1731020844094,0.1,194.97,194.96,15.7325809]
[1731020844516,0.1,194.97,194.95,15.7325809]
[1731020844729,0.1,194.97,194.96,15.7325809]
[1731020845108,0.1,194.96,194.95,15.7325809]
[1731020846322,0.2,194.97,194.95,15.7325809]
[1731020846616,0.2,194.97,194.96,15.7325809]
[1731020846796,0.1,194.97,194.96,15.7325809]
[1731020846999,0.2,194.97,194.96,15.7325809]
[1731020847216,0.1,194.97,194.96,15.7325809]
[1731020847415,0.2,194.98,194.96,15.7325809]
[1731020847811,0.2,194.95,194.84,20.0]
[1731020848128,0.2,194.92,194.91,15.7325809]
[1731020848419,0.1,194.91,194.9,15.7325809]
[1731020849518,0.1,194.94,194.9,15.7325809]
[1731020849752,0.2,194.99,194.93,39.5094649]
[1731020849911,0.1,194.97,194.94,23.776884]
[1731020850115,0.1,194.97,194.92,23.776884]
[1731020850506,0.2,194.96,194.92,23.776884]
[1731020850827,0.2,194.99,194.95,15.7325809]
[1731020851005,0.1,194.98,194.92,23.776884]
[1731020851203,0.1,194.99,194.92,20.0]
[1731020851204,0.2,194.99,194.92,20.0]
[1731020851403,6.5251,195.06,194.95,23.902374]
[1731020851404,0.2,195.03,194.95,23.902374]
[1731020851602,0.2,195.05,194.98,20.0]
[1731020851802,0.1,195.04,194.98,20.0]
[1731020852004,0.2,195.04,194.99,23.776884]
[1731020852219,0.1,195.03,194.99,23.776884]
[1731020852521,0.1,195.03,195.02,15.7325809]
[1731020853826,11.46409872,195.11,194.95,16.1597]
[1731020853827,0.2,195.02,194.95,16.1597]
[1731020854127,0.2,195.02,194.82,8.01946754]
[1731020854128,0.1,194.99,194.91,15.7387]
[1731020854328,0.2,194.98,194.97,15.7325809]
[1731020854626,0.2,194.96,194.94,15.7325809]
[1731020854929,15.7325809,195.1,194.92,15.7325809]
[1731020854930,0.2,194.94,194.92,15.7325809]
[1731020855107,0.2,194.93,194.92,15.7325809]
[1731020855428,0.2,194.93,194.86,15.265]
[1731020855429,0.2,194.93,194.91,15.7325809]
[1731020855599,0.1,194.92,194.91,15.7325809]
[1731020855918,0.2,194.9,194.89,15.7325809]
[1731020856117,0.1,194.9,194.89,15.7325809]
[1731020856423,0.2,194.9,194.89,15.7325809]
[1731020856727,0.1,194.9,194.89,15.7325809]
[1731020856928,0.2,194.9,194.89,15.7325809]
[1731020857305,0.2,194.9,194.89,25.24332587]
[1731020858801,0.1,194.91,194.89,25.24332587]
[1731020859005,0.1,194.91,194.9,25.24332587]
[1731020859630,0.2,194.91,194.9,25.24332587]
[1731020860010,0.1,194.87,194.83,20.0]
[1731020860312,0.1,194.87,194.86,25.24332587]
[1731020860709,0.1,194.9,194.86,25.24332587]
[1731020860904,0.1,194.9,194.83,20.0]
[1731020860905,0.1,194.91,194.89,25.24332587]
[1731020861130,0.1,194.91,194.83,20.0]
[1731020861131,0.1,194.91,194.9,25.24332587]
[1731020861330,0.2,194.91,194.9,25.24332587]
[1731020862721,0.2,194.91,194.89,25.24332587]
[1731020862909,0.1,194.92,194.9,25.24332587]
[1731020863111,0.2,194.92,194.91,25.24332587]
[1731020866429,0.1,194.9,194.89,25.24332587]
[1731020866634,0.1,194.89,194.88,25.24332587]
[1731020867016,0.2,194.89,194.88,25.24332587]
[1731020867713,0.1,194.9,194.88,25.24332587]
[1731020867914,0.2,194.91,194.89,25.24332587]
[1731020868131,0.1,194.92,194.9,25.24332587]
[1731020868317,0.2,194.92,194.91,25.24332587]
[1731020868926,0.1,194.92,194.91,25.24332587]
[1731020870016,0.1,194.93,194.91,25.24332587]
[1731020870215,0.1,194.93,194.92,25.24332587]
[1731020870414,0.1,194.94,194.92,25.24332587]
[1731020870614,0.1,194.94,194.93,25.24332587]
[1731020870813,6.0272,194.99,194.93,25.24332587]
[1731020870814,0.1,194.97,194.93,25.24332587]
[1731020871016,0.2,194.97,194.96,25.24332587]
[1731020871234,0.1,194.96,194.95,25.24332587]
[1731020871931,0.2,194.97,194.95,25.24332587]
[1731020872128,0.2,194.97,194.96,25.24332587]
[1731020872437,0.2,194.97,194.88,16.1103]
[1731020872438,0.1,194.95,194.94,25.24332587]
[1731020873519,0.1,194.97,194.94,25.24332587]
[1731020873520,0.1,194.96,194.94,25.24332587]
[1731020873833,0.1,194.95,194.94,25.24332587]
[1731020875541,0.1,194.96,194.94,25.24332587]
[1731020875717,0.1,194.95,194.91,23.776884]
[1731020875922,0.1,194.95,194.94,25.24332587]
[1731020879345,0.1,194.95,194.94,15.76962211]
[1731020879639,0.1,194.92,194.83,15.459]
[1731020879845,0.1,194.91,194.89,15.76962211]
[1731020880046,0.1,194.91,194.9,15.76962211]
[1731020880742,0.2,194.93,194.9,15.76962211]
[1731020880935,0.2,194.96,194.92,15.76962211]
[1731020881141,0.2,194.96,194.95,15.76962211]
[1731020881832,0.1,194.96,194.95,15.76962211]
[1731020882037,0.1,194.97,194.95,15.76962211]
[1731020882038,0.2,194.97,194.95,15.76962211]
[1731020882241,0.2,194.97,194.96,15.76962211]
[1731020883133,0.1,194.95,194.91,23.776884]
[1731020883451,0.1,194.94,194.93,15.76962211]
[1731020883663,0.2,194.93,194.84,20.0]
[1731020883954,0.1,194.9,194.89,15.76962211]
[1731020884542,0.2,194.91,194.89,15.76962211]
[1731020884942,0.1,194.9,194.89,15.76962211]
[1731020886051,0.1,194.92,194.89,15.76962211]
[1731020886252,0.1,194.91,194.84,0.12549]
[1731020886557,0.1,194.91,194.9,15.76962211]
[1731020886853,0.1,194.92,194.9,15.76962211]
[1731020887056,0.1,194.91,194.84,43.902374]
[1731020887445,0.2,194.91,194.84,43.902374]
[1731020887644,0.2,194.9,194.84,43.776884]
[1731020887840,0.1,194.89,194.84,23.776884]
[1731020888048,0.1,194.9,194.88,15.76962211]
[1731020888362,0.1,194.92,194.89,15.76962211]
[1731020888531,0.2,194.92,194.9,15.76962211]
[1731020888735,0.1,194.92,194.9,15.76962211]
[1731020889153,0.1,194.92,194.91,15.76962211]
[1731020890243,0.1,194.92,194.85,20.12549]
[1731020890244,0.1,194.91,194.9,15.76962211]
[1731020890858,0.1,194.92,194.89,15.76962211]
[1731020891043,0.1,194.91,194.9,15.76962211]
[1731020891560,0.1,194.92,194.9,15.76962211]
[1731020891561,0.2,194.92,194.9,15.76962211]
[1731020892470,0.1,194.91,194.9,15.76962211]
[1731020892758,0.1,194.9,194.89,15.76962211]
[1731020892961,0.1,194.91,194.88,15.76962211]
[1731020893167,0.1,194.89,194.88,15.76962211]
[1731020893665,0.1,194.9,194.88,15.76962211]
[1731020893838,0.1,194.89,194.88,15.76962211]
[1731020894847,0.2,194.9,194.88,15.76962211]
[1731020895036,0.2,194.9,194.79,70.0]
[1731020895037,0.1,194.88,194.87,15.76962211]
[1731020895648,6.6521,194.94,194.81,20.0]
[1731020895649,0.1,194.86,194.85,15.76962211]
[1731020895843,0.1,194.86,194.84,15.76962211]
[1731020895844,0.1,194.85,194.84,15.76962211]
[1731020896050,0.1,194.85,194.83,15.76962211]
[1731020896051,0.1,194.84,194.83,15.76962211]
[1731020898186,0.1,194.89,194.83,15.76962211]
[1731020898465,0.1,194.9,194.88,15.76962211]
[1731020898668,0.2,194.93,194.89,15.76962211]
[1731020898874,0.1,194.92,194.81,23.902374]
[1731020899069,0.1,194.89,194.81,23.902374]
[1731020899370,0.1,194.93,194.88,15.76962211]
[1731020899555,0.2,194.95,194.92,15.76962211]
[1731020899868,0.1,194.95,194.94,15.76962211]
[1731020900659,0.2,194.96,194.94,15.76962211]
[1731020900866,0.2,194.96,194.95,15.76962211]
[1731020901053,6.0167,195.03,194.95,15.76962211]
[1731020901054,0.1,194.98,194.95,15.76962211]
[1731020901255,0.1,195.01,194.97,15.76962211]
[1731020901560,0.1,195.03,195.0,15.76962211]
[1731020901749,0.1,195.03,195.02,15.76962211]
[1731020901950,0.1,195.0,194.91,43.902374]
[1731020902152,0.2,194.97,194.96,15.76962211]
[1731020902357,0.1,194.96,194.91,43.902374]
[1731020902952,0.2,194.96,194.91,43.902374]
[1731020903368,0.1,194.93,194.91,0.12549]
[1731020903573,0.1,194.93,194.92,15.76962211]
[1731020906273,0.2,194.93,194.92,15.76962211]
[1731020906474,0.1,194.92,194.91,15.89511211]
[1731020907645,0.1,194.92,194.91,0.12549]
[1731020907851,0.2,194.92,194.91,0.12549]
[1731020908259,0.1,194.92,194.91,15.89511211]
[1731020908460,0.2,194.92,194.91,0.12549]
[1731020908967,0.2,194.92,194.91,15.89511211]
[1731020909678,0.1,194.93,194.91,15.89511211]
[1731020909882,0.1,194.93,194.92,15.76962211]
[1731020910776,0.2,194.93,194.92,15.76962211]
[1731020911676,0.2,194.92,194.91,0.12549]
[1731020912055,0.1,194.92,194.91,0.12549]
[1731020912468,0.2,194.93,194.91,0.12549]
[1731020914481,0.1,194.93,194.91,15.89511211]
[1731020914662,0.1,194.92,194.91,0.12549]
[1731020916378,0.2,194.93,194.91,0.12549]
[1731020916678,0.1,194.93,194.91,15.89511211]
[1731020917777,0.1,194.93,194.92,15.76962211]
[1731020918081,0.1,194.94,194.92,15.76962211]
[1731020918282,0.1,194.94,194.93,15.76962211]
[1731020918471,0.2,194.96,194.93,15.76962211]
[1731020918677,0.1,194.93,194.91,20.12549]
[1731020918973,0.2,194.93,194.91,0.12549]
[1731020919162,0.2,194.92,194.91,0.12549]
[1731020919364,0.2,194.92,194.91,15.89511211]
[1731020919674,0.1,194.92,194.91,15.89511211]
[1731020919873,0.1,194.93,194.91,15.89511211]
[1731020920076,0.1,194.92,194.91,15.89511211]
[1731020920665,15.76962211,194.98,194.91,15.89511211]
[1731020920666,0.1,194.95,194.91,15.89511211]
[1731020920859,0.1,194.99,194.95,20.0]
[1731020921059,0.1,194.98,194.95,20.0]
[1731020921281,0.1,195.0,194.96,23.776884]
[1731020922062,0.1,195.0,194.99,15.76962211]
[1731020922356,0.1,195.0,194.98,15.76962211]
[1731020922560,0.1,194.98,194.97,15.76962211]
[1731020922766,0.2,194.98,194.96,15.76962211]
[1731020923174,0.2,194.98,194.97,15.76962211]
[1731020923378,0.1,194.99,194.97,15.76962211]
[1731020923657,0.1,194.98,194.97,15.76962211]
[1731020923863,0.2,194.98,194.97,15.76962211]
[1731020924075,0.1,194.99,194.97,15.76962211]
[1731020924375,0.1,194.99,194.98,15.76962211]
[1731020924761,0.2,194.99,194.98,15.76962211]
[1731020924964,0.1,194.98,194.96,15.76962211]
[1731020925886,0.1,194.98,194.97,15.76962211]
[1731020926187,0.2,194.98,194.97,15.76962211]
[1731020926687,0.1,194.98,194.97,15.76962211]
[1731020926871,0.1,194.97,194.93,20.0]
[1731020927071,0.2,194.97,194.96,15.76962211]
[1731020927266,0.2,194.97,194.95,15.76962211]
[1731020927577,0.2,194.97,194.96,15.76962211]
[1731020928167,0.2,194.97,194.95,15.76962211]
[1731020928786,0.1,194.97,194.96,15.76962211]
[1731020928986,0.2,194.97,194.96,15.76962211]
[1731020929376,0.1,194.97,194.96,15.76962211]
[1731020929579,0.2,194.97,194.95,15.76962211]
[1731020929969,0.2,194.97,194.96,15.76962211]
[1731020930991,0.1,194.95,194.91,0.12549]
[1731020931171,0.2,194.93,194.92,15.76962211]
[1731020931377,0.2,194.93,194.91,15.89511211]
[1731020931590,0.1,194.92,194.91,15.89511211]
[1731020932603,0.2,194.92,194.91,0.12549]
[1731020932891,0.2,194.92,194.91,15.89511211]
[1731020933194,0.1,194.93,194.91,15.89511211]
[1731020933484,0.1,194.93,194.92,15.76962211]
[1731020933692,0.2,194.93,194.92,15.76962211]
[1731020934075,0.2,194.92,194.91,0.12549]
[1731020934800,0.1,194.92,194.91,0.12549]
[1731020935183,0.2,194.92,194.91,0.12549]
[1731020936081,0.1,194.92,194.91,0.12549]
[1731020936284,0.2,194.92,194.91,0.12549]
[1731020936676,0.2,194.92,194.91,15.89511211]
[1731020936997,0.2,194.92,194.91,0.12549]
[1731020941298,15.96962211,194.92,194.91,0.12549]
[1731020941895,21.24484882,194.92,194.91,0.12549]
[1731020944197,51.74112282,194.92,194.91,0.12549]
[1731020944392,0.2,194.82,194.81,15.76962211]
[1731020944592,0.2,194.81,194.8,15.76962211]
[1731020944815,0.1,194.81,194.8,15.76962211]
[1731020944992,0.2,194.81,194.8,15.76962211]
[1731020945411,0.1,194.81,194.8,15.76962211]
[1731020945612,51.02230071,194.92,194.78,15.76962211]
[1731020945613,0.2,194.79,194.78,15.76962211]
[1731020948002,0.1,194.79,194.78,15.76962211]
[1731020948214,0.2,194.79,194.78,15.76962211]
[1731020948506,0.2,194.79,194.76,0.5800606]
[1731020948507,0.1,194.78,194.77,15.76962211]
[1731020949103,0.2,194.77,194.76,0.5800606]
[1731020949296,0.2,194.77,194.76,16.34968271]
[1731020949502,0.2,194.77,194.76,0.5800606]
[1731020949717,0.2,194.77,194.76,16.34968271]
[1731020950218,0.2,194.77,194.76,0.5800606]
[1731020951407,0.2,194.77,194.76,16.34968271]
[1731020952424,0.1,194.77,194.76,16.34968271]
[1731020952625,0.2,194.77,194.76,16.34968271]
[1731020953120,0.1,194.77,194.76,16.34968271]
[1731020954516,0.2,194.77,194.76,16.34968271]
[1731020955127,0.2,194.77,194.76,0.5800606]
[1731020955627,0.2,194.77,194.76,16.34968271]
[1731020956005,0.2,194.77,194.76,0.5800606]
[1731020956211,0.2,194.77,194.76,16.34968271]
[1731020957818,0.2,194.77,194.76,0.5800606]
[1731020960809,15.96962211,194.77,194.76,0.5800606]
[1731020962031,0.2,194.77,194.76,0.5800606]
[1731020964811,15.96962211,194.77,194.76,0.5800606]
[1731020965047,39.94650611,194.77,194.76,0.5800606]
[1731020965228,46.34370611,194.77,194.76,0.5800606]
[1731020965415,61.97680611,194.77,194.76,0.5800606]
[1731020965722,0.1,194.64,194.63,15.76962211]
[1731020966032,0.1,194.64,194.62,15.76962211]
[1731020966244,0.1,194.58,194.56,38.47383062]
[1731020966410,0.1,194.58,194.56,15.9181606]
[1731020966610,0.1,194.58,194.57,15.76962211]
[1731020967229,0.1,194.6,194.57,15.76962211]
[1731020967432,0.1,194.6,194.59,15.76962211]
[1731020967634,0.2,194.63,194.6,20.0]
[1731020967832,0.2,194.63,194.62,15.76962211]
[1731020969905,0.1,194.63,194.62,15.76962211]
[1731020970130,0.2,194.63,194.62,15.76962211]
[1731020971313,0.2,194.6,194.59,15.76962211]
[1731020971513,0.2,194.6,194.56,15.9181606]
[1731020971514,0.1,194.59,194.56,15.9181606]
[1731020971725,0.2,194.59,194.58,15.76962211]
[1731020971938,0.1,194.59,194.58,15.76962211]
[1731020972427,5.35251011,194.7,194.58,15.76962211]
[1731020972428,0.1,194.61,194.59,0.12549]
[1731020972627,0.1,194.63,194.6,20.0]
[1731020972850,0.1,194.63,194.62,15.76962211]
[1731020973012,0.1,194.64,194.62,15.76962211]
[1731020973212,0.1,194.64,194.6,35.76962211]
[1731020973213,0.1,194.64,194.63,15.76962211]
[1731020973413,0.1,194.65,194.63,15.76962211]
[1731020973627,0.1,194.64,194.63,15.76962211]
[1731020973831,0.1,194.65,194.63,15.76962211]
[1731020974045,0.2,194.65,194.64,15.76962211]
[1731020974239,0.2,194.65,194.6,20.0]
[1731020974240,0.1,194.64,194.6,20.0]
[1731020974409,0.1,194.64,194.63,15.76962211]
[1731020974613,0.1,194.64,194.63,35.76962211]
[1731020975331,0.2,194.68,194.63,35.76962211]
[1731020975636,0.2,194.68,194.67,15.76962211]
[1731020976509,37.66582211,194.73,194.61,23.776884]
[1731020976510,0.2,194.67,194.66,15.76962211]
[1731020976728,0.1,194.63,194.56,15.9181606]
[1731020976929,0.2,194.63,194.61,15.76962211]
[1731020977220,0.1,194.66,194.63,20.0]
[1731020977434,0.2,194.65,194.63,20.0]
[1731020978124,0.2,194.65,194.57,43.902374]
[1731020978343,0.2,194.65,194.64,15.76962211]
[1731020979039,0.1,194.64,194.63,15.76962211]
[1731020979243,0.1,194.62,194.61,35.76962211]
[1731020979734,0.2,194.62,194.61,15.76962211]
[1731020980332,0.2,194.63,194.61,15.76962211]
[1731020980540,0.1,194.62,194.57,23.902374]
[1731020980739,0.1,194.63,194.61,15.76962211]
[1731020981048,0.1,194.64,194.62,15.76962211]
[1731020981224,0.1,194.65,194.63,15.76962211]
[1731020981424,0.1,194.66,194.64,15.76962211]
[1731020981623,0.2,194.65,194.64,15.76962211]
[1731020981837,0.1,194.65,194.64,15.76962211]
[1731020982052,0.2,194.65,194.64,15.76962211]
[1731020983827,0.2,194.65,194.63,15.76962211]
[1731020984034,0.2,194.64,194.63,15.76962211]
[1731020984621,0.1,194.62,194.61,15.76962211]
[1731020984822,0.1,194.61,194.59,15.76962211]
[1731020985029,0.1,194.6,194.59,15.76962211]
[1731020985223,0.1,194.59,194.58,15.76962211]
[1731020985451,0.1,194.6,194.56,15.9181606]
[1731020985452,0.2,194.58,194.57,15.76962211]
[1731020986346,0.2,194.58,194.56,16.34968271]
[1731020986839,0.1,194.57,194.56,0.5800606]
[1731020987041,0.1,194.57,194.56,16.34968271]
[1731020987352,0.1,194.57,194.56,36.34968271]
[1731020988027,0.2,194.58,194.57,20.0]
[1731020988227,0.1,194.58,194.57,35.76962211]
[1731020988427,0.2,194.58,194.57,35.76962211]
[1731020988659,0.2,194.58,194.56,16.34968271]
[1731020988829,0.2,194.57,194.56,0.5800606]
[1731020989227,0.1,194.57,194.56,16.34968271]
[1731020989941,0.2,194.57,194.56,16.34968271]
[1731020990144,0.1,194.57,194.56,36.34968271]
[1731020990646,0.2,194.59,194.57,20.0]
[1731020990839,0.1,194.58,194.57,35.76962211]
[1731020991044,0.2,194.58,194.57,35.76962211]
[1731020991349,0.2,194.58,194.56,0.5800606]
[1731020991350,0.2,194.58,194.56,16.34968271]
[1731020991545,0.1,194.58,194.57,20.0]
[1731020991846,0.1,194.59,194.57,35.76962211]
[1731020992044,0.2,194.59,194.58,15.76962211]
[1731020992362,0.1,194.59,194.58,15.76962211]
[1731020992553,0.2,194.59,194.58,15.76962211]
[1731020992726,0.1,194.6,194.59,20.0]
[1731020992923,0.2,194.6,194.57,20.0]
[1731020993145,0.1,194.61,194.59,35.76962211]
[1731020993348,0.2,194.61,194.6,15.76962211]
[1731020993737,0.2,194.61,194.59,15.76962211]
[1731020994054,0.1,194.6,194.59,15.76962211]
[1731020994230,0.1,194.6,194.59,35.76962211]
[1731020995239,0.2,194.61,194.59,35.76962211]
[1731020995563,0.1,194.6,194.59,35.76962211]
[1731020995853,0.1,194.61,194.59,35.76962211]
[1731020995854,0.2,194.61,194.59,35.76962211]
[1731020996252,0.1,194.62,194.6,35.76962211]
[1731020996549,0.1,194.64,194.61,15.76962211]
[1731020996851,0.1,194.64,194.63,15.76962211]
[1731020997055,0.2,194.64,194.63,15.76962211]
[1731020997852,0.2,194.64,194.62,15.76962211]
[1731020998233,0.2,194.64,194.63,15.76962211]
[1731020998631,0.1,194.64,194.63,39.54650611]
[1731020998851,0.2,194.68,194.64,43.902374]
[1731020999167,0.2,194.68,194.67,15.76962211]
[1731021000127,0.2,194.67,194.66,15.76962211]
[1731021000330,0.2,194.67,194.57,15.5783]
[1731021000331,0.1,194.62,194.61,23.776884]
[1731021000542,0.2,194.64,194.61,39.54650611]
[1731021000737,0.2,194.64,194.63,15.76962211]
[1731021000952,0.2,194.74,194.63,15.76962211]
[1731021000953,0.2,194.67,194.64,23.776884]
[1731021001132,0.1,194.67,194.66,15.76962211]
[1731021001333,0.2,194.67,194.66,15.76962211]
[1731021001545,0.2,194.69,194.66,15.76962211]
[1731021001747,0.1,194.67,194.66,15.76962211]
[1731021001952,0.2,194.67,194.66,15.76962211]
[1731021002156,0.1,194.63,194.61,20.0]
[1731021002732,0.1,194.63,194.62,15.76962211]
[1731021002928,0.1,194.63,194.62,35.76962211]
[1731021003857,0.1,194.65,194.63,23.776884]
[1731021004044,0.1,194.67,194.64,15.76962211]
[1731021004355,0.1,194.64,194.61,20.0]
[1731021004739,0.1,194.64,194.63,20.0]
[1731021005652,0.1,194.64,194.63,15.76962211]
[1731021005856,0.2,194.64,194.63,15.76962211]
[1731021006745,11.34182918,194.75,194.59,15.76962211]
[1731021006746,0.2,194.61,194.59,15.76962211]
[1731021006931,15.76962211,194.66,194.56,0.5800606]
[1731021006932,0.1,194.57,194.56,0.5800606]
[1731021007138,0.1,194.57,194.56,16.34968271]
[1731021007437,0.2,194.57,194.56,0.5800606]
[1731021009539,0.2,194.57,194.56,16.34968271]
[1731021009741,0.2,194.57,194.56,0.5800606]
[1731021012661,15.96962211,194.57,194.56,0.5800606]
[1731021012962,0.2,194.57,194.56,0.5800606]
[1731021013269,15.96962211,194.57,194.56,0.5800606]
[1731021014147,37.74752211,194.57,194.56,0.5800606]
[1731021014354,37.84752211,194.57,194.56,0.5800606]
[1731021014648,37.97301211,194.57,194.56,0.5800606]
[1731021014894,37.97301211,194.57,194.56,0.0800606]
[1731021015151,37.74752211,194.57,194.56,0.0800606]
[1731021015657,37.84752211,194.57,194.56,0.0800606]
[1731021016056,38.07301211,194.57,194.56,0.0800606]
[1731021016372,61.74989611,194.57,194.56,0.0800606]
[1731021016547,61.84989611,194.57,194.56,0.0800606]
[1731021017771,61.84989611,194.57,194.37,0.5800606]
[1731021017772,0.1,194.45,194.44,15.76962211]
[1731021018155,0.2,194.45,194.44,15.76962211]
[1731021021163,0.2,194.45,194.39,5.26436801]
[1731021021164,0.2,194.45,194.38,2.25282335]
[1731021021464,0.1,194.42,194.4,35.76962211]
[1731021021850,0.1,194.4,194.37,17.1426606]
[1731021022064,0.2,194.4,194.37,17.1426606]
[1731021022267,0.2,194.4,194.38,23.776884]
[1731021022458,0.1,194.42,194.4,23.776884]
[1731021022657,0.1,194.42,194.41,15.76962211]
[1731021022971,0.1,194.44,194.41,15.76962211]
[1731021023148,0.1,194.44,194.43,15.76962211]
[1731021023446,0.1,194.44,194.43,35.76962211]
[1731021024263,0.2,194.44,194.43,35.76962211]
[1731021024470,0.1,194.43,194.39,20.0]
[1731021024685,0.1,194.43,194.42,35.76962211]
[1731021025371,0.2,194.43,194.42,35.76962211]
[1731021025870,0.1,194.41,194.39,20.0]
[1731021026170,0.1,194.41,194.4,35.76962211]
[1731021026749,0.2,194.42,194.41,20.0]
[1731021026970,0.2,194.42,194.41,35.76962211]
[1731021027649,0.2,194.43,194.41,35.76962211]
[1731021027853,0.1,194.43,194.42,15.76962211]
[1731021028054,0.2,194.43,194.42,15.76962211]
[1731021029474,0.2,194.43,194.42,10.14524934]
[1731021031077,0.1,194.4,194.38,23.776884]
[1731021031378,0.1,194.4,194.39,30.14524934]
[1731021031753,0.1,194.41,194.39,30.14524934]
[1731021031954,0.1,194.41,194.4,70.7262467]
[1731021032355,0.1,194.41,194.4,30.14524934]
[1731021034257,0.1,194.42,194.4,94.5031307]
[1731021034458,0.1,194.42,194.41,30.14524934]
[1731021035174,0.1,194.43,194.41,30.14524934]
[1731021035350,0.1,194.43,194.42,10.14524934]
[1731021038365,0.1,194.41,194.4,23.776884]
[1731021038567,0.1,194.41,194.4,53.92213334]
[1731021039176,0.1,194.42,194.41,20.0]
[1731021039380,0.1,194.42,194.41,30.14524934]
[1731021039558,0.1,194.42,194.41,10.14524934]
[1731021040676,0.2,194.42,194.41,10.14524934]
[1731021040885,0.1,194.42,194.41,10.14524934]
[1731021041178,0.2,194.42,194.41,10.14524934]
[1731021042373,0.1,194.42,194.41,10.14524934]
[1731021044475,0.1,194.45,194.41,10.14524934]
[1731021044679,0.2,194.45,194.44,10.14524934]
[1731021044977,0.1,194.45,194.44,10.14524934]
[1731021045483,0.1,194.42,194.41,20.0]
[1731021045693,0.1,194.42,194.41,30.14524934]
[1731021046067,0.1,194.44,194.41,30.14524934]
[1731021046370,0.1,194.44,194.43,10.14524934]
[1731021046957,0.2,194.44,194.43,10.14524934]
[1731021047784,0.1,194.45,194.43,10.14524934]
[1731021047987,0.1,194.45,194.44,10.14524934]
[1731021049589,0.2,194.45,194.44,10.14524934]
[1731021049883,0.1,194.45,194.44,10.14524934]
[1731021050081,0.2,194.45,194.39,43.902374]
[1731021050289,0.2,194.45,194.44,10.14524934]
[1731021053079,0.1,194.45,194.44,10.14524934]
[1731021053583,0.2,194.45,194.44,10.14524934]
[1731021055187,0.1,194.43,194.39,43.776884]